fUSD/lending_fUSD_20240805
["ID","MTS","AMOUNT","RATE_DAILY","PERIOD"]
[334214483,1722843781636,-150.0,0.00024225,2]
[334214484,1722843781661,-150.45,0.00024247,2]
[334214485,1722843781686,-150.0,0.00024247,2]
[334214486,1722843781711,-150.0,0.00024247,2]
[334214487,1722843781735,-410.35490967,0.00024272,2]
[334214488,1722843781768,-352.74435837,0.00024274,2]
[334214489,1722843781793,-67106.96,0.0002433,2]
[334214490,1722843781819,-160.45573098,0.00024356,30]
[334214491,1722843781843,-1658.78234811,0.00024357,2]
[334214492,1722843781869,-353.32624526,0.00024359,2]
[334214493,1722843781894,-500.0,0.000244,5]
[334214494,1722843781920,-19248.63750001,0.00024409,2]
[334214495,1722843781952,-1500.0,0.00024418,2]
[334214496,1722843781979,-19248.63750001,0.00024443,2]
[334214497,1722843782011,-19248.63750001,0.00024444,2]
[334214498,1722843782038,-884.0,0.00024444,2]
[334214499,1722843782063,-19248.63750001,0.0002445,2]
[334214500,1722843782091,-2750.83021284,0.00024452,2]
[334214501,1722843782120,-705996.30525599,0.00024452,11]
[334214502,1722843782146,-19248.63750001,0.00024452,2]
[334214503,1722843782172,-19248.63750001,0.00024459,2]
[334214504,1722843782198,-410.35490967,0.00024463,2]
[334214505,1722843782224,-19248.63750001,0.0002448,2]
[334214506,1722843782258,-19248.63750001,0.00024496,2]
[334214507,1722843782283,-5002.69143628,0.00024498,2]
[334214508,1722843782310,-979.60568791,0.000245,2]
[334214509,1722843782336,-160.45573098,0.00024521,30]
[334214510,1722843782361,-199.17,0.00024593,5]
[334214511,1722843782387,-997.78,0.000246,2]
[334214512,1722843782412,-304.48,0.000246,2]
[334214513,1722843782439,-2000.0,0.000246,14]
[334214514,1722843782467,-4148.33023522,0.00024625,2]
[334214515,1722843782495,-500.0,0.00024628,2]
[334214516,1722843782521,-160.45573098,0.00024658,30]
[334214517,1722843782546,-884.0,0.00024696,2]
[334214518,1722843782572,-224.30823511,0.00024712,2]
[334214519,1722843782599,-500.0,0.00024717,2]
[334214520,1722843782623,-11723.20758682,0.0002475,2]
[334214521,1722843782649,-410.35490974,0.00024783,2]
[334214522,1722843782675,-1000.0,0.000248,2]
[334214523,1722843782701,-500.0,0.000248,2]
[334214524,1722843782727,-200.0,0.000248,2]
[334214525,1722843782759,-150.0,0.00024802,2]
[334214526,1722843782791,-717.13,0.000249,31]
[334214527,1722843782824,-717.13,0.000249,31]
[334214528,1722843782855,-717.13,0.000249,31]
[334214529,1722843782888,-717.13,0.000249,31]
[334214530,1722843782920,-717.13,0.000249,31]
[334214531,1722843782958,-717.13,0.000249,31]
[334214532,1722843783000,-717.13,0.000249,31]
[334214533,1722843783039,-717.13,0.000249,31]
[334214534,1722843783072,-717.13,0.000249,31]
[334214535,1722843783106,-717.13,0.000249,31]
[334214536,1722843783140,-717.13,0.000249,31]
[334214537,1722843783173,-717.13,0.000249,31]
[334214538,1722843783207,-717.13,0.000249,31]
[334214539,1722843783245,-717.13,0.000249,31]
[334214540,1722843783279,-717.13,0.000249,31]
[334214541,1722843783313,-717.13,0.000249,31]
[334214542,1722843783346,-717.13,0.000249,31]
[334214543,1722843783377,-717.13,0.000249,31]
[334214544,1722843783409,-717.13,0.000249,31]
[334214545,1722843783442,-717.13,0.000249,31]
[334214546,1722843783468,-200.68,0.00024927,5]
[334214547,1722843783497,-884.0,0.00024948,2]
[334214548,1722843783523,-1080.67695952,0.00024987,21]
[334214549,1722843783550,-1405.19425176,0.00024989,2]
[334214550,1722843783575,-155.25867243,0.00024989,2]
[334214551,1722843783600,-150.0,0.00024999,2]
[334214552,1722843783627,-8176.0465403,0.00024999,2]
[334214553,1722843783654,-405645.84020053,0.00024999,2]
[334214554,1722843783682,-207.7720022,0.00024999,2]
[334214555,1722843783708,-3561.00054018,0.00024999,2]
[334214556,1722843783735,-224.47647091,0.00024999,2]
[334214557,1722843783775,-155.17889713,0.00024999,2]
[334214558,1722843783800,-3182.06393682,0.00024999,2]
[334214559,1722843783828,-3213565.09566337,0.00025,2]
[334214560,1722843783857,-869560.63059378,0.00025,2]
[334214561,1722843783886,-435783.46705199,0.00025,2]
[334214562,1722843783914,-1229220.31011377,0.00025,2]
[334214563,1722843783944,-866570.06896403,0.00025,2]
[334214564,1722843783973,-500.0,0.00025,2]
[334214565,1722843784009,-132446.26517838,0.00025,2]
[334214566,1722843792933,500.0,0.00025286,120]
[334214568,1722843796425,1000.0,0.00026849,120]
[334214569,1722843796691,1000.0,0.00026849,120]
[334214570,1722843805724,500.0,0.00025083,120]
[334214571,1722843832680,200.0,0.00025286,120]
[334214572,1722843842334,-1598.3966,0.000109,2]
[334214573,1722843842361,-2938.6522,0.000109,2]
[334214574,1722843842388,-7500.0,0.000109,2]
[334214575,1722843842416,-363.95283854,0.00011186,2]
[334214576,1722843842442,-358.83419228,0.00011435,2]
[334214577,1722843842468,-294.62247704,0.000137,2]
[334214578,1722843842494,-35705.60054376,0.00013979,2]
[334214579,1722843842519,-270.40100644,0.00013999,2]
[334214580,1722843842544,-218.77944705,0.0001443,2]
[334214581,1722843842582,-294.62247704,0.00017758,2]
[334214582,1722843842608,-162.49206791,0.00019725,2]
[334214583,1722843842632,-1138.37465577,0.00019999,2]
[334214584,1722843842659,-159.50818121,0.00019999,2]
[334214585,1722843842685,-3977.2935375,0.00020999,2]
[334214586,1722843842711,-225.59278676,0.00021,2]
[334214587,1722843842739,-1000.0,0.00021362,2]
[334214588,1722843842765,-294.62247704,0.00021816,2]
[334214589,1722843842793,-58048.9425311,0.0002187,4]
[334214590,1722843842820,-29024.4712656,0.00021906,4]
[334214591,1722843843128,-14512.2356328,0.00022639,4]
[334214592,1722843843157,-196.91,0.00022729,5]
[334214593,1722843843183,-200.67,0.00022734,5]
[334214594,1722843843212,-795.63774394,0.00022967,2]
[334214595,1722843843238,-1000.0,0.00023,23]
[334214596,1722843843264,-321.92762054,0.00023108,2]
[334214597,1722843843292,-14512.2356328,0.00023198,4]
[334214598,1722843843319,-321.92762053,0.00024004,2]
[334214599,1722843843355,-1000.0,0.00024032,2]
[334214600,1722843843384,-14512.2356328,0.00024114,4]
[334214601,1722843843410,-932.45,0.00024235,7]
[334214602,1722843843439,-932.45,0.00024235,7]
[334214603,1722843843466,-932.45,0.00024235,7]
[334214604,1722843843492,-932.45,0.00024235,7]
[334214605,1722843843521,-29024.4712656,0.0002432,4]
[334214606,1722843843548,-14512.2356328,0.00024399,4]
[334214607,1722843843587,-14512.2356328,0.00024434,4]
[334214608,1722843843616,-14512.2356328,0.0002444,4]
[334214609,1722843843644,-174146.827593,0.00024442,4]
[334214610,1722843843671,-270.637,0.00024449,2]
[334214611,1722843843697,-1208.0,0.00024451,2]
[334214612,1722843843724,-932.45,0.00024508,7]
[334214613,1722843843751,-932.45,0.00024508,7]
[334214614,1722843843779,-1010.9,0.000246,2]
[334214615,1722843843806,-301.42,0.000246,2]
[334214616,1722843843842,-932.45,0.00024781,7]
[334214617,1722843843869,-932.45,0.00024781,7]
[334214618,1722843843898,-1000.0,0.000248,2]
[334214619,1722843843925,-500.0,0.000248,2]
[334214620,1722843843952,-200.0,0.000248,2]
[334214621,1722843843982,-178.83093164,0.00024899,2]
[334214622,1722843844012,-1405.19425176,0.00024899,2]
[334214623,1722843844040,-178.83093162,0.000249,2]
[334214624,1722843844075,-321.92762053,0.000249,2]
[334214625,1722843844102,-178.83093162,0.000249,2]
[334214626,1722843844129,-2063.12265963,0.00025,2]
[334214627,1722843844158,-4788822.64228033,0.00025,2]
[334214628,1722843844187,-2518551.82991646,0.00025,2]
[334214629,1722843844217,-1238691.28855096,0.00025,2]
[334214630,1722843848746,-363.95283854,0.00011186,2]
[334214631,1722843848774,-250.0,0.00021535,2]
[334214632,1722843848800,-1290.95,0.0002341,5]
[334214633,1722843848841,-10000.0,0.00024359,2]
[334214634,1722843848869,-5041807.14637981,0.00025,2]
[334214635,1722843848898,-1477758.84207853,0.00025,2]
[334214636,1722843848926,-2468529.10870312,0.00025,2]
[334214637,1722843862480,-1000.0,0.00025,5]
[334214638,1722843862505,-1000.0,0.00025,6]
[334214639,1722843862531,-1000.0,0.00025,7]
[334214640,1722843862556,-1000.0,0.00025,8]
[334214641,1722843862586,-1800.0,0.00025,26]
[334214642,1722843862611,-739.05071824,0.00025,10]
[334214643,1722843862637,-160.0,0.00025,10]
[334214644,1722843862663,-19900.0,0.00025,5]
[334214645,1722843862690,-192.0,0.00025,8]
[334214646,1722843862716,-175.0,0.00025,8]
[334214647,1722843862743,-500.0,0.00025,20]
[334214648,1722843862768,-1000.0,0.00025,20]
[334214649,1722843862792,-634.19525011,0.00025,15]
[334214650,1722843862817,-8881.79827767,0.00025,7]
[334214651,1722843862848,-151.0,0.00025,7]
[334214652,1722843862873,-151.0,0.00025,7]
[334214653,1722843862897,-186.7288853,0.00025,7]
[334214654,1722843862922,-155.16168623,0.00025,10]
[334214655,1722843862947,-494.0,0.00025,8]
[334214656,1722843862972,-516.0,0.00025,8]
[334214657,1722843862998,-301.543996,0.00025,7]
[334214658,1722843863024,-182.804549,0.00025,7]
[334214659,1722843863051,-182.804549,0.00025,7]
[334214660,1722843863080,-182.804549,0.00025,7]
[334214661,1722843863109,-182.804549,0.00025,7]
[334214662,1722843863134,-182.804549,0.00025,7]
[334214663,1722843863159,-182.804549,0.00025,7]
[334214664,1722843863184,-182.804549,0.00025,7]
[334214665,1722843863209,-182.804549,0.00025,7]
[334214666,1722843863235,-182.804549,0.00025,7]
[334214667,1722843863260,-182.804549,0.00025,7]
[334214668,1722843863286,-182.804549,0.00025,7]
[334214669,1722843863311,-182.804549,0.00025,7]
[334214670,1722843863347,-182.804549,0.00025,7]
[334214671,1722843863375,-182.804549,0.00025,7]
[334214672,1722843863402,-182.804549,0.00025,7]
[334214673,1722843863428,-182.804549,0.00025,7]
[334214674,1722843863455,-182.804549,0.00025,7]
[334214675,1722843863483,-182.804549,0.00025,7]
[334214676,1722843863510,-182.804549,0.00025,7]
[334214677,1722843863537,-182.804557,0.00025,7]
[334214678,1722843863564,-151.0,0.00025,7]
[334214679,1722843863600,-151.0,0.00025,7]
[334214680,1722843863625,-151.0,0.00025,7]
[334214681,1722843863652,-151.0,0.00025,7]
[334214682,1722843863679,-151.0,0.00025,7]
[334214683,1722843863706,-151.0,0.00025,7]
[334214684,1722843863733,-151.0,0.00025,7]
[334214685,1722843863759,-151.0,0.00025,7]
[334214686,1722843863785,-151.0,0.00025,7]
[334214687,1722843863811,-151.0,0.00025,7]
[334214688,1722843863846,-151.0,0.00025,7]
[334214689,1722843863873,-151.0,0.00025,7]
[334214690,1722843863898,-151.0,0.00025,7]
[334214691,1722843863925,-151.0,0.00025,7]
[334214692,1722843863953,-151.0,0.00025,7]
[334214693,1722843863980,-151.0,0.00025,7]
[334214694,1722843864011,-151.0,0.00025,7]
[334214695,1722843864038,-151.0,0.00025,7]
[334214696,1722843864064,-151.0,0.00025,7]
[334214697,1722843864095,-151.0,0.00025,7]
[334214698,1722843864122,-271.917852,0.00025,7]
[334214699,1722843864148,-159.516953,0.00025,7]
[334214700,1722843864174,-151.0,0.00025,7]
[334214701,1722843864200,-151.0,0.00025,7]
[334214702,1722843864225,-151.0,0.00025,7]
[334214703,1722843864251,-151.0,0.00025,7]
[334214704,1722843864276,-151.0,0.00025,7]
[334214705,1722843864302,-151.0,0.00025,7]
[334214706,1722843864588,-294.277351,0.00025,7]
[334214707,1722843864615,-151.0,0.00025,7]
[334214708,1722843864640,-151.0,0.00025,7]
[334214709,1722843864666,-151.0,0.00025,7]
[334214710,1722843864691,-151.0,0.00025,7]
[334214711,1722843864716,-151.0,0.00025,7]
[334214712,1722843864740,-151.0,0.00025,7]
[334214713,1722843864765,-151.0,0.00025,7]
[334214714,1722843864790,-194.520545,0.00025,7]
[334214715,1722843864815,-151.0,0.00025,7]
[334214716,1722843864844,-151.0,0.00025,7]
[334214717,1722843864869,-151.0,0.00025,7]
[334214718,1722843864894,-151.0,0.00025,7]
[334214719,1722843864920,-151.0,0.00025,7]
[334214720,1722843864945,-151.0,0.00025,7]
[334214721,1722843864970,-151.0,0.00025,7]
[334214722,1722843864998,-218.399335,0.00025,7]
[334214723,1722843865025,-151.0,0.00025,7]
[334214724,1722843865050,-151.0,0.00025,7]
[334214725,1722843865076,-151.0,0.00025,7]
[334214726,1722843865109,-151.0,0.00025,7]
[334214727,1722843865135,-151.0,0.00025,7]
[334214728,1722843865161,-151.0,0.00025,7]
[334214729,1722843865187,-256.890627,0.00025,7]
[334214730,1722843865214,-151.0,0.00025,7]
[334214731,1722843865240,-151.0,0.00025,7]
[334214732,1722843865267,-151.0,0.00025,7]
[334214733,1722843865292,-301.11051,0.00025,7]
[334214734,1722843865317,-151.0,0.00025,7]
[334214735,1722843865348,-151.0,0.00025,7]
[334214736,1722843865372,-151.314838,0.00025,7]
[334214737,1722843865398,-524.347338,0.00025,7]
[334214738,1722843865423,-524.347338,0.00025,7]
[334214739,1722843865448,-524.347338,0.00025,7]
[334214740,1722843865473,-524.347338,0.00025,7]
[334214741,1722843865499,-524.347338,0.00025,7]
[334214742,1722843865523,-524.347338,0.00025,7]
[334214743,1722843865548,-524.347338,0.00025,7]
[334214744,1722843865572,-524.347338,0.00025,7]
[334214745,1722843865600,-524.347338,0.00025,7]
[334214746,1722843865625,-524.347338,0.00025,7]
[334214747,1722843865649,-524.347338,0.00025,7]
[334214748,1722843865674,-524.347338,0.00025,7]
[334214749,1722843865699,-524.347338,0.00025,7]
[334214750,1722843865724,-524.347338,0.00025,7]
[334214751,1722843865749,-524.347338,0.00025,7]
[334214752,1722843865774,-524.347338,0.00025,7]
[334214753,1722843865800,-524.347338,0.00025,7]
[334214754,1722843865830,-524.347338,0.00025,7]
[334214755,1722843865856,-524.347338,0.00025,7]
[334214756,1722843865881,-524.347341,0.00025,7]
[334214757,1722843865907,-151.0,0.00025,7]
[334214758,1722843865932,-151.627755,0.00025,7]
[334214759,1722843865957,-151.0,0.00025,7]
[334214760,1722843865982,-189.805734,0.00025,7]
[334214761,1722843866013,-151.0,0.00025,7]
[334214762,1722843866040,-151.0,0.00025,7]
[334214763,1722843866065,-151.0,0.00025,7]
[334214764,1722843866096,-151.0,0.00025,7]
[334214765,1722843866122,-151.0,0.00025,7]
[334214766,1722843866146,-151.0,0.00025,7]
[334214767,1722843866170,-151.0,0.00025,7]
[334214768,1722843866195,-151.0,0.00025,7]
[334214769,1722843866219,-151.0,0.00025,7]
[334214770,1722843866244,-151.0,0.00025,7]
[334214771,1722843866269,-151.0,0.00025,7]
[334214772,1722843866293,-151.0,0.00025,7]
[334214773,1722843866317,-151.0,0.00025,7]
[334214774,1722843866353,-151.0,0.00025,7]
[334214775,1722843866378,-151.0,0.00025,7]
[334214776,1722843866402,-151.0,0.00025,7]
[334214777,1722843866426,-151.0,0.00025,7]
[334214778,1722843866451,-151.0,0.00025,7]
[334214779,1722843866476,-151.0,0.00025,7]
[334214780,1722843866501,-151.0,0.00025,7]
[334214781,1722843866526,-151.0,0.00025,7]
[334214782,1722843866550,-151.0,0.00025,7]
[334214783,1722843866574,-151.0,0.00025,7]
[334214784,1722843866603,-151.0,0.00025,7]
[334214785,1722843866628,-151.0,0.00025,7]
[334214786,1722843866652,-151.0,0.00025,7]
[334214787,1722843866676,-151.0,0.00025,7]
[334214788,1722843866702,-160.336,0.00025,7]
[334214789,1722843866729,-151.0,0.00025,7]
[334214790,1722843866754,-151.0,0.00025,7]
[334214791,1722843866780,-151.0,0.00025,7]
[334214792,1722843866805,-151.0,0.00025,7]
[334214793,1722843866835,-151.0,0.00025,7]
[334214794,1722843866860,-151.0,0.00025,7]
[334214795,1722843866886,-151.0,0.00025,7]
[334214796,1722843866912,-151.0,0.00025,7]
[334214797,1722843866938,-151.0,0.00025,7]
[334214798,1722843866964,-151.0,0.00025,7]
[334214799,1722843866991,-151.0,0.00025,7]
[334214800,1722843867017,-782.788278,0.00025,7]
[334214801,1722843867046,-782.788278,0.00025,7]
[334214802,1722843867073,-782.788278,0.00025,7]
[334214803,1722843867103,-782.788278,0.00025,7]
[334214804,1722843867131,-782.788278,0.00025,7]
[334214805,1722843867156,-782.788278,0.00025,7]
[334214806,1722843867182,-782.788278,0.00025,7]
[334214807,1722843867208,-782.788278,0.00025,7]
[334214808,1722843867232,-782.788278,0.00025,7]
[334214809,1722843867258,-782.788278,0.00025,7]
[334214810,1722843867284,-782.788278,0.00025,7]
[334214811,1722843867521,-782.788278,0.00025,7]
[334214812,1722843867547,-782.788278,0.00025,7]
[334214813,1722843867572,-782.788278,0.00025,7]
[334214814,1722843867602,-782.788278,0.00025,7]
[334214815,1722843867626,-782.788278,0.00025,7]
[334214816,1722843867652,-782.788278,0.00025,7]
[334214817,1722843867678,-782.788278,0.00025,7]
[334214818,1722843867705,-782.788278,0.00025,7]
[334214819,1722843867731,-782.788269,0.00025,7]
[334214820,1722843867756,-151.0,0.00025,7]
[334214821,1722843867782,-151.0,0.00025,7]
[334214822,1722843867808,-151.0,0.00025,7]
[334214823,1722843867836,-151.0,0.00025,7]
[334214824,1722843867862,-151.0,0.00025,7]
[334214825,1722843867905,-151.0,0.00025,7]
[334214826,1722843867950,-240.1021,0.00025,7]
[334214827,1722843867996,-151.0,0.00025,7]
[334214828,1722843868041,-151.0,0.00025,7]
[334214829,1722843868090,-151.0,0.00025,7]
[334214830,1722843868137,-151.0,0.00025,7]
[334214831,1722843868181,-151.0,0.00025,7]
[334214832,1722843868227,-151.0,0.00025,7]
[334214833,1722843868270,-151.0,0.00025,7]
[334214834,1722843868313,-151.0,0.00025,7]
[334214835,1722843868358,-151.0,0.00025,7]
[334214836,1722843868400,-151.0,0.00025,7]
[334214837,1722843868444,-151.0,0.00025,7]
[334214838,1722843868489,-151.0,0.00025,7]
[334214839,1722843868533,-151.0,0.00025,7]
[334214840,1722843868578,-151.0,0.00025,7]
[334214841,1722843868628,-151.0,0.00025,7]
[334214842,1722843868676,-171.476512,0.00025,7]
[334214843,1722843868724,-151.0,0.00025,7]
[334214844,1722843868777,-151.0,0.00025,7]
[334214845,1722843868826,-151.0,0.00025,7]
[334214846,1722843868884,-151.0,0.00025,7]
[334214847,1722843868930,-151.0,0.00025,7]
[334214848,1722843868976,-151.0,0.00025,7]
[334214849,1722843869027,-151.0,0.00025,7]
[334214850,1722843869074,-151.0,0.00025,7]
[334214851,1722843869119,-151.0,0.00025,7]
[334214852,1722843869164,-151.0,0.00025,7]
[334214853,1722843869211,-151.0,0.00025,7]
[334214854,1722843869260,-151.0,0.00025,7]
[334214855,1722843869309,-151.0,0.00025,7]
[334214856,1722843869356,-151.0,0.00025,7]
[334214857,1722843869401,-151.0,0.00025,7]
[334214858,1722843869449,-278.360981,0.00025,7]
[334214859,1722843869496,-151.0,0.00025,7]
[334214860,1722843869543,-151.0,0.00025,7]
[334214861,1722843869591,-151.0,0.00025,7]
[334214862,1722843869633,-181.857774,0.00025,7]
[334214863,1722843869677,-204.435044,0.00025,7]
[334214864,1722843869722,-204.435044,0.00025,7]
[334214865,1722843869767,-204.435044,0.00025,7]
[334214866,1722843869812,-204.435044,0.00025,7]
[334214867,1722843869856,-204.435044,0.00025,7]
[334214868,1722843869903,-204.435044,0.00025,7]
[334214869,1722843869948,-204.435044,0.00025,7]
[334214870,1722843869994,-204.435044,0.00025,7]
[334214871,1722843870041,-204.435044,0.00025,7]
[334214872,1722843870091,-204.435044,0.00025,7]
[334214873,1722843870140,-204.435044,0.00025,7]
[334214874,1722843870187,-204.435044,0.00025,7]
[334214875,1722843870232,-204.435044,0.00025,7]
[334214876,1722843870277,-204.435044,0.00025,7]
[334214877,1722843870319,-204.435044,0.00025,7]
[334214878,1722843870363,-204.435044,0.00025,7]
[334214879,1722843870408,-204.435044,0.00025,7]
[334214880,1722843870453,-204.435044,0.00025,7]
[334214881,1722843870496,-204.435044,0.00025,7]
[334214882,1722843870541,-204.435036,0.00025,7]
[334214883,1722843870586,-193.181358,0.00025,7]
[334214884,1722843870627,-193.181358,0.00025,7]
[334214885,1722843870671,-193.181358,0.00025,7]
[334214886,1722843870719,-193.181358,0.00025,7]
[334214887,1722843870766,-193.181358,0.00025,7]
[334214888,1722843870811,-193.181358,0.00025,7]
[334214889,1722843870853,-193.181358,0.00025,7]
[334214890,1722843870897,-193.181358,0.00025,7]
[334214891,1722843870940,-193.181358,0.00025,7]
[334214892,1722843870984,-193.181358,0.00025,7]
[334214893,1722843871034,-193.181358,0.00025,7]
[334214894,1722843871078,-193.181358,0.00025,7]
[334214895,1722843871125,-193.181358,0.00025,7]
[334214896,1722843871172,-193.181358,0.00025,7]
[334214897,1722843871216,-193.181358,0.00025,7]
[334214898,1722843871261,-193.181358,0.00025,7]
[334214899,1722843871303,-193.181358,0.00025,7]
[334214900,1722843871344,-193.181358,0.00025,7]
[334214901,1722843871386,-193.181358,0.00025,7]
[334214902,1722843871428,-193.181368,0.00025,7]
[334214903,1722843871473,-151.0,0.00025,7]
[334214904,1722843871514,-151.0,0.00025,7]
[334214905,1722843871555,-151.0,0.00025,7]
[334214906,1722843871595,-151.0,0.00025,7]
[334214907,1722843871636,-151.0,0.00025,7]
[334214908,1722843871678,-151.0,0.00025,7]
[334214909,1722843871719,-151.0,0.00025,7]
[334214910,1722843871761,-151.0,0.00025,7]
[334214911,1722843871801,-151.0,0.00025,7]
[334214912,1722843871841,-151.0,0.00025,7]
[334214913,1722843871882,-151.0,0.00025,7]
[334214914,1722843871925,-151.0,0.00025,7]
[334214915,1722843871968,-151.0,0.00025,7]
[334214916,1722843872263,-151.0,0.00025,7]
[334214917,1722843872307,-151.0,0.00025,7]
[334214918,1722843872357,-157.588184,0.00025,7]
[334214919,1722843872402,-152.06456,0.00025,7]
[334214920,1722843872446,-165.859319,0.00025,7]
[334214921,1722843872487,-165.859319,0.00025,7]
[334214922,1722843872528,-165.859319,0.00025,7]
[334214923,1722843872569,-165.859319,0.00025,7]
[334214924,1722843872609,-165.859319,0.00025,7]
[334214925,1722843872648,-165.859319,0.00025,7]
[334214926,1722843872688,-165.859319,0.00025,7]
[334214927,1722843872730,-165.859319,0.00025,7]
[334214928,1722843872771,-165.859319,0.00025,7]
[334214929,1722843872814,-165.859319,0.00025,7]
[334214930,1722843872857,-165.859319,0.00025,7]
[334214931,1722843872901,-165.859319,0.00025,7]
[334214932,1722843872945,-165.859319,0.00025,7]
[334214933,1722843872990,-165.859319,0.00025,7]
[334214934,1722843873040,-151.0,0.00025,7]
[334214935,1722843873097,-165.859319,0.00025,7]
[334214936,1722843873151,-151.0,0.00025,7]
[334214937,1722843873195,-165.859319,0.00025,7]
[334214938,1722843873239,-151.0,0.00025,7]
[334214939,1722843873284,-165.859319,0.00025,7]
[334214940,1722843873327,-260.246355,0.00025,7]
[334214941,1722843873370,-151.0,0.00025,7]
[334214942,1722843873413,-165.859319,0.00025,7]
[334214943,1722843873456,-151.0,0.00025,7]
[334214944,1722843873502,-151.0,0.00025,7]
[334214945,1722843873545,-151.0,0.00025,7]
[334214946,1722843873590,-151.0,0.00025,7]
[334214947,1722843873635,-1175.312828,0.00025,7]
[334214948,1722843873677,-151.0,0.00025,7]
[334214949,1722843873721,-1175.312828,0.00025,7]
[334214950,1722843873766,-1175.312828,0.00025,7]
[334214951,1722843873811,-151.0,0.00025,7]
[334214952,1722843873857,-151.0,0.00025,7]
[334214953,1722843873902,-1175.312828,0.00025,7]
[334214954,1722843873949,-151.0,0.00025,7]
[334214955,1722843873995,-1175.312828,0.00025,7]
[334214956,1722843874041,-1175.312828,0.00025,7]
[334214957,1722843874087,-151.0,0.00025,7]
[334214958,1722843874133,-1175.312828,0.00025,7]
[334214959,1722843874177,-151.0,0.00025,7]
[334214960,1722843874222,-1175.312828,0.00025,7]
[334214961,1722843874269,-151.0,0.00025,7]
[334214962,1722843874316,-1175.312828,0.00025,7]
[334214963,1722843874358,-151.0,0.00025,7]
[334214964,1722843874400,-1175.312828,0.00025,7]
[334214965,1722843874442,-151.0,0.00025,7]
[334214966,1722843874483,-151.0,0.00025,7]
[334214967,1722843874524,-159.28,0.00025,7]
[334214968,1722843874567,-1175.312828,0.00025,7]
[334214969,1722843874613,-1175.312828,0.00025,7]
[334214970,1722843874656,-1175.312828,0.00025,7]
[334214971,1722843874699,-165.859319,0.00025,7]
[334214972,1722843874740,-1175.312828,0.00025,7]
[334214973,1722843874782,-165.859319,0.00025,7]
[334214974,1722843874824,-1175.312828,0.00025,7]
[334214975,1722843874866,-344.559486,0.00025,7]
[334214976,1722843874909,-1175.312828,0.00025,7]
[334214977,1722843874952,-344.559486,0.00025,7]
[334214978,1722843874995,-1175.312828,0.00025,7]
[334214979,1722843875040,-1175.312828,0.00025,7]
[334214980,1722843875087,-344.559486,0.00025,7]
[334214981,1722843875130,-344.559486,0.00025,7]
[334214982,1722843875172,-1175.312828,0.00025,7]
[334214983,1722843875213,-1175.312826,0.00025,7]